bitfinex/quotes_ETHUSD_20250131
["timestamp","ask_amount","ask_price","bid_price","bid_amount"]
[1738330207501,2.69393023,3358.8,3357.7,9.60839]
[1738330207502,2.69393023,3358.8,3358.0,1.18367455]
[1738330207684,2.69393023,3358.8,3358.0,2.26288101]
[1738330209428,2.69393023,3358.8,3358.1,1.1233]
[1738330209630,2.69393023,3359.1,3358.2,1.0909]
[1738330209925,2.69393023,3359.1,3358.3,1.0909]
[1738330210095,2.69393023,3359.1,3358.4,0.97209]
[1738330210593,2.69393023,3359.1,3358.5,1.20556997]
[1738330211333,2.69393023,3359.1,3358.5,1.1758]
[1738330211632,2.69393023,3358.8,3358.5,1.1758]
[1738330211791,2.69393023,3358.8,3358.5,8.63]
[1738330211992,3.0,3358.7,3358.3,8.63]
[1738330212190,2.69393023,3358.4,3358.3,8.63]
[1738330212787,3.0,3359.0,3358.3,8.63]
[1738330212788,0.58994237,3359.2,3358.4,1.1137]
[1738330213015,1.1582,3359.8,3358.5,0.02976847]
[1738330213016,2.69393023,3359.4,3358.5,0.02976847]
[1738330213229,2.69393023,3359.4,3358.5,0.02977052]
[1738330213533,2.69393023,3359.4,3358.7,1.1144]
[1738330213729,2.69393023,3359.4,3358.7,1.1441692]
[1738330213933,0.59512671,3359.6,3358.7,1.1441692]
[1738330214097,2.69393023,3359.1,3358.8,8.63]
[1738330214292,3.78973023,3359.1,3357.6,1.1116]
[1738330214633,4.16870325,3359.1,3357.8,1.1116]
[1738330214937,3.0,3359.3,3358.0,1.0983]
[1738330215094,3.0,3359.3,3358.2,1.0809]
[1738330215290,3.0,3359.3,3358.4,1.0809]
[1738330215594,2.69393023,3358.8,3358.4,1.0809]
[1738330216022,3.79363023,3359.1,3358.4,1.0809]
[1738330216428,2.69393023,3359.1,3358.4,1.0809]
[1738330217455,0.60597212,3359.0,3358.5,0.02977271]
[1738330218159,3.11453884,3360.5,3358.6,1.1353]
[1738330218160,1.1946,3360.0,3358.6,1.1353]
[1738330218319,0.58512634,3359.8,3358.8,1.141]
[1738330218526,3.0,3359.6,3358.8,1.141]
[1738330218738,1.1892,3359.5,3358.8,1.141]
[1738330219409,0.0075,3359.4,3358.7,8.63]
[1738330220348,0.17722263,3359.8,3358.8,0.02977236]
[1738330220349,1.25842263,3359.8,3358.8,0.02977236]
[1738330220548,1.0812,3359.8,3358.7,8.63]
[1738330220850,1.0812,3359.8,3358.8,0.02976757]
[1738330221552,0.61045004,3359.6,3358.9,1.1487]
[1738330222313,0.0075,3360.2,3358.9,1.1487]
[1738330222554,0.44190302,3360.1,3359.1,1.1487]
[1738330222713,0.44190302,3360.1,3359.2,0.02976584]
[1738330222915,0.44190302,3360.1,3359.1,1.1487]
[1738330223432,3.0,3360.0,3359.2,8.65976588]
[1738330223629,3.0,3360.0,3359.2,8.63]
[1738330223844,0.61433333,3359.9,3359.2,8.63]
[1738330224142,0.59757964,3359.8,3359.2,8.63]
[1738330224326,3.0,3359.7,3359.2,8.63]
[1738330224539,0.205,3359.7,3359.2,8.63]
[1738330227577,1.1316,3359.6,3359.2,8.63]
[1738330227741,0.76281099,3359.5,3359.2,8.63]
[1738330229264,0.76281099,3359.5,3358.9,8.63]
[1738330230331,0.205,3359.7,3359.0,0.02976877]
[1738330230982,0.205,3359.7,3358.9,8.63]
[1738330232145,0.59757964,3359.8,3359.0,1.0771]
[1738330232352,0.204,3359.7,3359.0,1.0771]
[1738330235180,0.204,3359.7,3359.0,9.7071]
[1738330236954,2.70143023,3359.5,3359.0,8.63]
[1738330237278,3.40333302,3359.4,3359.0,8.63]
[1738330237683,0.40333302,3359.4,3359.0,8.63]
[1738330238771,1.1279,3359.6,3359.0,8.63]
[1738330240409,0.204,3359.7,3359.0,8.63]
[1738330241204,0.204,3359.7,3359.1,8.63]
[1738330242861,0.204,3359.6,3359.1,8.63]
[1738330244010,0.59757964,3359.8,3359.1,8.63]
[1738330244163,0.204,3359.5,3359.1,8.63]
[1738330245465,0.204,3359.4,3359.2,1.18516745]
[1738330245666,0.59757964,3359.8,3359.2,1.18516745]
[1738330245868,0.1,3361.7,3359.2,1.18516745]
[1738330245869,1.0977,3361.1,3359.4,1.1382]
[1738330246207,0.204,3361.0,3359.7,1.1382]
[1738330246362,0.204,3361.0,3359.9,1.1382]
[1738330246562,0.204,3361.0,3359.8,1.27894368]
[1738330246563,0.204,3361.0,3360.1,1.1382]
[1738330246772,0.204,3361.0,3360.2,8.65975496]
[1738330247113,0.60459642,3360.9,3360.2,8.63]
[1738330247314,0.60459642,3360.9,3360.3,0.02975496]
[1738330247617,0.60459642,3360.9,3360.4,2.1179955]
[1738330247618,0.204,3360.8,3360.4,2.1179955]
[1738330247791,0.60459642,3360.9,3360.4,2.1179955]
[1738330247991,0.204,3360.8,3360.4,2.1179955]
[1738330248609,0.204,3360.8,3360.5,0.02975379]
[1738330248775,1.0977,3361.5,3360.5,0.02975379]
[1738330248975,0.204,3361.4,3360.7,1.1062]
[1738330250001,0.204,3361.4,3360.8,8.63]
[1738330250180,0.59673214,3361.2,3360.9,8.63]
[1738330251117,3.0,3361.5,3360.9,8.63]
[1738330251302,2.69393023,3361.9,3361.0,8.6597514]
[1738330251503,0.204,3361.8,3361.1,1.0917]
[1738330251820,0.59642478,3361.3,3361.1,1.0917]
[1738330253985,0.59642478,3361.3,3361.0,8.63]
[1738330254185,1.33443028,3361.3,3361.0,8.63]
[1738330255947,0.59642478,3361.3,3361.1,8.63]
[1738330258760,0.204,3361.2,3361.1,8.63]
[1738330261908,0.204,3361.2,3360.9,8.63]
[1738330262319,0.204,3361.2,3361.0,8.63]
[1738330262738,0.204,3361.2,3361.1,1.0942]
[1738330264358,0.204,3361.2,3361.0,8.63]
[1738330264724,3.204,3361.2,3361.0,8.63]
[1738330264924,0.7663355,3361.1,3361.0,8.63]
[1738330265223,0.7663355,3361.1,3360.2,1.0958]
[1738330265524,4.1296,3360.7,3359.9,1.0958]
[1738330265725,4.1296,3360.7,3360.0,8.63]
[1738330266257,1.1296,3360.7,3360.0,8.63]
[1738330266780,3.0,3360.9,3360.1,0.02975877]
[1738330267065,3.0,3360.9,3360.1,0.02975514]
[1738330267458,0.58843844,3360.7,3360.1,0.02975514]
[1738330267658,3.0,3360.9,3360.1,0.02975514]
[1738330267861,0.011,3372.8,3360.1,0.02975514]
[1738330267862,1.22088589,3361.4,3360.3,1.1081]
[1738330268060,0.204,3361.5,3360.5,1.1081]
[1738330268241,3.29981579,3361.1,3360.5,1.1081]
[1738330268441,1.089,3361.0,3360.4,8.63]
[1738330268826,4.089,3361.0,3360.4,8.63]
[1738330269029,2.69393023,3360.8,3360.2,1.1081]
[1738330269258,3.43281181,3360.8,3360.1,8.63]
[1738330269871,2.69393023,3360.5,3360.1,8.63]
[1738330270032,2.69393023,3360.2,3359.6,1.1882]
[1738330270237,0.204,3360.1,3359.6,1.1882]
[1738330270658,1.1933,3360.4,3359.7,0.0297619]
[1738330270858,1.1933,3360.4,3359.6,1.1882]
[1738330270859,0.204,3360.0,3359.6,1.1882]
[1738330271057,0.204,3360.0,3359.7,0.02975967]
[1738330271464,0.204,3360.0,3359.6,1.1882]
[1738330272046,2.69393023,3359.9,3359.6,8.63]
[1738330272250,3.39935302,3359.8,3358.9,1.1377]
[1738330272450,3.86243023,3359.4,3358.9,1.1377]
[1738330272675,3.0,3359.0,3358.4,1.1859]
[1738330272984,3.0,3359.0,3358.5,8.63]
[1738330273163,3.0,3358.7,3358.1,1.0856]
[1738330273340,1.3572,3358.6,3357.4,1.11537591]
[1738330273539,1.94920909,3358.6,3357.5,8.63]
[1738330273871,1.94920909,3358.6,3357.7,1.0856]
[1738330273872,1.3572,3358.6,3357.7,1.0856]
[1738330274073,1.3572,3358.6,3357.8,0.02977574]
[1738330274841,0.204,3358.6,3357.8,0.02977574]
[1738330275041,0.204,3358.6,3357.7,1.0856]
[1738330275351,0.204,3358.6,3357.8,0.97156]
[1738330275558,2.69393023,3358.5,3357.7,1.0856]
[1738330275745,3.0,3358.1,3357.6,8.63]
[1738330276577,2.69393023,3357.9,3357.6,8.63]
[1738330276879,2.69393023,3357.9,3357.0,1.1883]
[1738330276880,3.0,3357.8,3357.1,8.63]
[1738330277271,3.0,3357.8,3357.0,1.1883]
[1738330277579,2.69393023,3357.3,3356.6,1.106]
[1738330277882,3.204,3357.2,3356.7,8.63]
[1738330278259,3.204,3357.2,3356.7,8.43]
[1738330278648,3.204,3357.2,3356.3,8.43]
[1738330278978,4.1912,3356.9,3356.3,8.43]
[1738330279138,4.90011302,3356.9,3356.3,8.43]
[1738330279787,3.0,3356.6,3355.6,1.1293]
[1738330279988,3.0,3356.6,3355.7,8.45979548]
[1738330280168,0.0075,3356.8,3355.2,1.1293]
[1738330280169,3.0,3356.3,3355.2,1.1293]
[1738330280382,3.56939302,3356.3,3355.3,0.02979876]
[1738330281083,3.0,3356.0,3355.4,8.43]
[1738330281284,0.204,3355.9,3355.4,8.43]
[1738330281438,0.204,3355.9,3355.2,1.1293]
[1738330281439,0.204,3355.9,3355.5,8.43]
[1738330281870,2.69393023,3356.4,3355.5,9.38593]
[1738330282065,0.204,3356.3,3355.5,9.38593]
[1738330282297,3.0,3356.6,3355.6,0.02979487]
[1738330282439,0.6000304,3356.6,3355.7,8.43]
[1738330282643,0.0075,3357.5,3355.5,0.95593]
[1738330282644,0.204,3356.8,3355.9,1.1286]
[1738330282892,0.204,3357.0,3356.0,1.25802199]
[1738330284073,2.89793023,3357.0,3356.0,1.22823251]
[1738330284271,3.0,3356.6,3355.9,1.1286]
[1738330284543,3.0075,3356.9,3355.9,1.1286]
[1738330284845,3.0,3356.6,3355.8,8.43]
[1738330285060,2.69393023,3356.4,3355.5,1.1484]
[1738330285285,3.38343302,3356.3,3355.6,8.43]
[1738330285596,3.0,3355.6,3355.2,8.43]
[1738330285796,2.69393023,3355.3,3354.8,8.43]
[1738330286082,1.2845,3355.5,3354.8,8.43]
[1738330286083,4.2845,3355.5,3354.8,8.43]
[1738330286448,1.2845,3355.5,3354.8,8.43]
[1738330287186,1.71295,3355.5,3354.8,8.43]
[1738330287367,3.0,3355.4,3354.8,8.43]
[1738330287584,0.0075,3355.3,3354.8,8.43]
[1738330287773,0.0075,3354.8,3354.0,0.1713818]
[1738330288095,3.0075,3354.6,3354.0,0.1713818]
[1738330288249,0.35101448,3354.5,3354.0,0.1713818]
[1738330289174,1.1134,3354.7,3354.0,0.1713818]
[1738330289411,0.0075,3354.5,3354.0,0.1713818]
[1738330291580,0.205,3354.4,3354.0,0.1713818]
[1738330293005,0.205,3354.3,3354.0,0.1713818]
[1738330293191,0.205,3354.3,3354.0,0.0713818]
[1738330294617,0.204,3354.2,3354.0,0.0713818]
[1738330295000,0.204,3354.1,3354.0,0.0713818]
[1738330295201,0.204,3354.1,3354.0,8.5013818]
[1738330295616,0.204,3354.1,3354.0,0.0713818]
[1738330295832,8.47813676,3354.1,3354.0,0.0713818]
[1738330295998,9.03563676,3354.1,3354.0,0.0713818]
[1738330296511,9.04313676,3354.1,3354.0,0.0713818]
[1738330297222,5.55405789,3354.1,3354.0,1e-08]
[1738330297535,0.5575,3353.8,3352.6,9.5229]
[1738330297714,0.5575,3353.8,3352.7,8.43]
[1738330297715,0.0075,3353.6,3352.7,8.43]
[1738330297890,0.5575,3353.6,3352.7,8.43]
[1738330298222,3.5575,3353.4,3352.5,8.43]
[1738330298392,3.0075,3353.1,3352.5,8.43]
[1738330298593,3.0075,3353.1,3352.4,3.0981209]
[1738330298594,1.124,3352.8,3352.4,3.0981209]
[1738330298822,0.205,3352.7,3352.4,3.0981209]
[1738330300187,0.39772386,3352.7,3352.4,3.0981209]
[1738330300437,1.124,3352.8,3352.4,3.0981209]
[1738330300594,0.205,3352.6,3352.4,3.0981209]
[1738330301228,0.205,3352.5,3352.0,0.02982777]
[1738330301608,0.205,3352.5,3351.9,1.1491]
[1738330301806,0.205,3352.5,3352.0,0.02982779]
[1738330302218,0.205,3352.5,3352.1,8.43]
[1738330302414,0.205,3352.5,3352.2,0.99071891]
[1738330302807,0.205,3352.5,3352.1,8.43]
[1738330303620,1.1422,3352.4,3352.1,8.43]
[1738330303820,1.1422,3352.4,3351.5,8.43]
[1738330304020,1.1422,3352.4,3351.6,0.02983097]
[1738330304407,1.1422,3352.4,3351.5,8.43]
[1738330304597,1.1422,3352.4,3351.6,0.95832]
[1738330304843,1.1422,3352.4,3351.7,0.02983098]
[1738330305032,0.205,3352.5,3351.7,0.02983098]
[1738330305207,0.205,3352.5,3351.7,8.45983098]
[1738330305409,0.205,3352.5,3351.7,8.43]
[1738330306011,1.0947,3352.7,3351.8,0.02983097]
[1738330306012,0.205,3352.4,3351.8,0.02983097]
[1738330306411,0.205,3352.3,3351.8,0.02983097]
[1738330306645,0.205,3352.3,3351.9,1.1198]
[1738330306836,1.0962,3353.0,3352.0,0.02982945]
[1738330307030,0.205,3352.9,3352.1,8.43]
[1738330307242,0.205,3352.9,3352.3,1.1294]
[1738330307576,0.205,3353.2,3352.4,0.02982185]
[1738330307735,0.205,3353.2,3352.5,8.43]
[1738330308464,0.205,3353.2,3352.6,0.0298235]
[1738330308655,0.205,3353.2,3352.5,8.43]
[1738330308857,1.1941,3353.4,3352.6,0.02982286]
[1738330309015,0.205,3353.3,3352.5,8.43]
[1738330309521,0.0075,3352.8,3352.5,8.43]
[1738330309746,1.1245,3352.9,3352.5,8.43]
[1738330310063,4.1245,3352.5,3351.7,8.43]
[1738330310245,4.1245,3352.5,3350.8,1.132]
[1738330310246,4.88510789,3352.4,3350.8,1.132]
[1738330310449,3.0,3351.9,3350.9,8.43]
[1738330310760,1.3942,3351.8,3350.4,1.1406]
[1738330311032,0.78757789,3351.7,3350.3,1.1406]
[1738330311175,1.1892,3351.4,3349.7,1.194748]
[1738330311375,1.1892,3351.4,3349.9,1.1406]
[1738330311575,0.205,3351.3,3350.0,0.02984165]
[1738330312082,0.205,3351.2,3350.0,0.02984165]
[1738330312638,0.205,3351.2,3350.7,1.143]
[1738330312839,0.205,3351.1,3350.8,0.0298395]
[1738330313055,1.1323,3352.4,3350.9,1.1049]
[1738330313281,0.1743095,3352.3,3350.9,1.1049]
[1738330313597,1.1323,3352.4,3351.1,1.0854]
[1738330314595,0.206,3352.3,3351.1,1.0854]
[1738330314958,3.0,3352.2,3351.1,1.0854]
[1738330315549,3.0,3351.8,3350.7,1.1512]
[1738330316565,3.0,3351.8,3350.8,0.02984016]
[1738330316762,0.64815789,3351.7,3350.8,0.02984016]
[1738330317088,0.206,3351.6,3350.8,0.02984016]
[1738330317961,1.1763,3351.5,3350.6,0.1713818]
[1738330318373,1.1763,3351.5,3350.7,0.0298399]
[1738330318593,1.67934579,3351.5,3350.7,0.0298399]
[1738330318757,1.67934579,3351.5,3350.6,0.1713818]
[1738330318758,0.206,3351.4,3350.6,0.1713818]
[1738330319463,1.67934579,3351.5,3350.6,0.1713818]
[1738330319671,0.206,3351.3,3350.6,0.1713818]
[1738330320399,0.206,3351.3,3350.7,0.02984284]
[1738330320770,0.206,3351.2,3350.7,0.02983999]
[1738330321100,0.206,3351.3,3350.7,0.02983999]
[1738330321482,0.206,3351.3,3350.8,1.098]
[1738330321666,0.206,3351.3,3350.9,0.02983624]
[1738330321874,0.206,3351.7,3350.9,0.02983624]
[1738330322277,0.206,3351.7,3350.6,0.1713818]
[1738330322474,0.38954,3351.7,3350.7,0.02984017]
[1738330322791,0.38954,3351.7,3350.6,0.20122206]
[1738330323196,1.1301,3351.6,3350.6,0.1713818]
[1738330323542,1.1301,3351.6,3350.6,0.0713818]
[1738330324822,0.55,3352.6,3350.7,1.20854026]
[1738330324975,0.55,3352.4,3350.8,0.47615009]
[1738330325160,1.1424,3352.3,3350.9,1.20853491]
[1738330325507,1.1424,3352.1,3350.9,1.1787]
[1738330325707,1.1424,3352.1,3351.0,0.02983713]
[1738330325859,1.1424,3352.1,3350.9,1.1787]
[1738330326057,1.90479789,3352.1,3351.0,0.0298369]
[1738330326357,0.206,3352.0,3351.0,0.0298369]
[1738330326606,0.206,3351.9,3351.0,0.0298369]
[1738330326804,0.206,3351.9,3351.1,1.1277]
[1738330327206,0.206,3351.9,3351.2,0.02983392]
[1738330327405,1.1657,3352.4,3351.2,0.02983392]
[1738330327611,0.207,3352.0,3351.2,0.02983392]
[1738330328104,0.207,3352.0,3351.1,1.1277]
[1738330328877,1.1958,3351.9,3350.7,1.1437]
[1738330329095,1.1958,3351.9,3350.8,0.02983804]
[1738330329588,0.66885789,3352.0,3350.9,1.1654]
[1738330329798,0.207,3352.0,3351.2,0.0075]
[1738330330007,0.207,3352.0,3351.3,1.1579]
[1738330330203,1.1262,3352.6,3351.4,0.02983064]
[1738330330520,0.207,3352.5,3351.5,1.1878]
[1738330331339,0.207,3352.5,3351.6,0.02983117]
[1738330331788,0.207,3352.5,3351.6,0.02982951]
[1738330332445,0.207,3352.5,3351.5,1.1878]
[1738330332594,4.59637887,3352.4,3350.6,1.2166818]
[1738330332787,1.1148,3352.4,3351.0,1.1453]
[1738330333105,0.209,3352.3,3351.2,1.1453]
[1738330333420,0.209,3352.3,3351.3,1.1751288]
[1738330333588,0.209,3352.4,3351.5,1.1453]
[1738330333790,0.209,3352.4,3351.7,1.1453]
[1738330334017,0.209,3352.4,3351.8,0.02982692]
[1738330334329,0.209,3352.4,3351.8,0.02982688]
[1738330334524,0.209,3352.4,3351.7,1.1453]
[1738330335826,1.0909,3352.3,3351.7,1.1453]
[1738330335988,1.0909,3352.3,3350.8,1.1149]
[1738330336193,1.0909,3352.3,3351.0,1.1149]
[1738330336391,1.0909,3352.3,3351.1,1.14473289]
[1738330336833,0.209,3352.4,3351.2,0.0075]
[1738330337132,0.209,3352.4,3351.2,1.14472913]
[1738330338725,0.208,3352.5,3351.3,1.1181]
[1738330338921,0.208,3352.5,3351.6,1.1031]
[1738330339120,0.208,3352.5,3351.8,1.1935]
[1738330339325,0.208,3352.5,3351.9,0.02982649]
[1738330339838,4.1445,3353.1,3351.8,1.22332559]
[1738330340037,4.94402613,3353.1,3351.8,1.22332559]
[1738330340339,0.36918244,3353.4,3351.8,1.22332559]
[1738330340340,0.208,3353.0,3352.0,1.0799]
[1738330340512,0.208,3353.0,3352.2,1.1014]
[1738330340712,0.208,3353.0,3352.4,1.1014]
[1738330341419,0.208,3353.0,3352.0,1.1371]
[1738330342570,1.0899,3352.6,3351.5,1.0982]
[1738330342725,0.75714789,3352.5,3351.5,1.0982]
[1738330343225,0.75714789,3352.5,3350.9,0.0298326]
[1738330343226,3.0,3352.3,3351.2,1.0908]
[1738330344059,3.0,3352.3,3351.3,0.02983304]
[1738330344264,3.0,3352.3,3351.2,1.0908]
[1738330344488,1.0928,3352.1,3351.2,1.0908]
[1738330344630,0.40928,3352.0,3351.3,0.02983307]
[1738330344942,0.96614789,3352.5,3351.4,1.1144]
[1738330345138,0.209,3352.5,3351.6,1.1178]
[1738330345346,0.209,3352.5,3351.8,1.1178]
[1738330345649,0.209,3352.5,3351.9,0.02982594]
[1738330346985,1.1143,3352.4,3351.0,1.0973]
[1738330347330,1.1143,3352.4,3351.1,0.02983389]
[1738330348043,1.1143,3352.4,3351.2,1.152]
[1738330348248,1.1143,3352.4,3351.3,0.02983208]
[1738330348249,1.54663,3352.4,3351.3,0.02983208]
[1738330348915,0.43233,3352.4,3351.3,0.02983208]
[1738330349115,4.0777,3352.7,3351.4,1.1326]
[1738330349293,1.1622,3353.1,3351.6,1.1931]
[1738330349497,0.209,3353.0,3351.6,1.1931]
[1738330349732,0.209,3353.0,3351.8,1.1931]
[1738330349931,1.33282551,3353.4,3352.0,1.1774]
[1738330350093,0.2,3354.6,3352.2,1.1774]
[1738330350094,0.209,3353.3,3352.2,1.1774]
[1738330350320,1.0994,3353.9,3352.4,1.1774]
[1738330350321,0.209,3353.2,3352.4,1.1774]
[1738330350645,0.209,3353.2,3352.5,0.02982155]
[1738330352311,0.209,3353.2,3352.4,1.1774]
[1738330352513,0.209,3353.2,3352.6,1.1153]
[1738330352737,0.209,3353.3,3352.6,1.1153]
[1738330353083,0.209,3353.4,3352.7,0.02982058]
[1738330353589,0.209,3353.4,3352.6,1.1153]
[1738330354228,0.78340789,3353.3,3352.2,1.1314]
[1738330354431,0.78340789,3353.3,3352.3,0.02982611]
[1738330354666,1.1435,3353.5,3352.3,0.02982611]
[1738330354893,0.209,3353.2,3352.4,1.1314]
[1738330355377,0.209,3353.2,3352.5,0.02982166]
[1738330355861,0.209,3353.2,3352.6,1.1233]
[1738330356048,0.209,3353.2,3352.7,0.02981898]
[1738330356247,3.0,3353.9,3352.6,1.1233]
[1738330356426,0.209,3353.8,3352.8,1.1037]
[1738330356627,0.209,3353.8,3352.9,0.0298164]
[1738330357083,0.209,3353.8,3353.0,1.1037]
[1738330357342,3.0,3353.9,3353.0,1.1037]
[1738330357578,2.05585789,3353.8,3353.0,1.1037]
[1738330358180,0.21,3353.7,3353.0,1.1037]
[1738330358336,0.21,3353.6,3353.0,1.1037]
[1738330358879,3.69157887,3353.6,3352.6,1.1182]
[1738330359086,1.1222,3353.4,3351.7,1.1213]
[1738330359383,0.76037789,3353.3,3351.8,0.02982332]
[1738330360961,0.76037789,3353.3,3351.9,1.149]
[1738330361178,1.1222,3353.4,3351.7,0.52105383]
[1738330361179,1.1222,3353.4,3352.1,1.149]
[1738330361391,0.21,3353.5,3352.2,1.17882183]
[1738330362087,0.21,3353.5,3352.2,0.53846418]
[1738330362250,0.21,3353.5,3350.4,3.48157887]
[1738330362251,4.1761,3352.4,3350.4,3.48157887]
[1738330362433,0.82668211,3352.3,3350.7,0.02983279]
[1738330362784,3.48157887,3352.1,3350.8,0.0075]
[1738330362933,0.23982194,3352.2,3350.9,0.02983385]
[1738330363139,0.21,3352.2,3351.0,0.02983394]
[1738330363583,0.02982194,3352.1,3350.7,0.02983324]
[1738330363876,1.1163,3351.9,3350.0,0.02983512]
[1738330364081,0.57982194,3351.8,3350.0,0.02983512]
[1738330364229,0.02982194,3351.8,3350.0,0.02983512]
[1738330364433,1.1163,3351.9,3350.0,0.02983512]
[1738330365180,1.1163,3351.9,3350.7,1.1754]
[1738330365389,0.75978789,3351.8,3350.8,0.02983957]
[1738330365933,3.0,3351.6,3350.3,1.1109]
[1738330366162,0.57982194,3351.5,3350.3,1.1109]
[1738330366489,3.0,3351.6,3350.4,0.02984322]
[1738330366778,0.72488668,3351.5,3350.4,0.02984322]
[1738330367799,0.72488668,3351.5,3350.3,1.1109]
[1738330367965,3.48157887,3351.0,3350.4,0.02984049]
[1738330368168,0.21,3350.9,3350.4,0.02984049]
[1738330368338,0.21,3350.9,3350.4,0.02984301]
[1738330368880,3.69157887,3351.0,3350.4,0.02984301]
[1738330369437,3.69157887,3351.0,3350.4,0.02984058]
[1738330370391,3.69157887,3351.0,3350.3,1.1109]
[1738330370558,3.69157887,3351.0,3350.4,0.02984059]
[1738330371084,3.69157887,3351.0,3350.4,0.02984171]
[1738330372061,3.48157887,3351.0,3350.4,0.02984171]
[1738330372261,0.21,3350.9,3350.3,1.1109]
[1738330372495,0.21,3350.9,3350.4,0.02984147]
[1738330372722,3.48157887,3351.0,3350.4,0.02984147]
[1738330372859,0.21,3350.9,3350.3,1.1109]
[1738330373260,0.21,3350.9,3350.4,0.02984148]
[1738330373556,0.21,3350.9,3350.4,0.02984235]
[1738330374866,3.48157887,3351.5,3350.7,1.15533998]
[1738330375069,0.75978789,3351.8,3350.7,1.15533998]
[1738330375378,0.21,3351.7,3350.7,1.15533998]
[1738330375761,0.21,3351.7,3350.7,1.1255]
[1738330376010,0.21,3351.7,3350.8,0.02983712]
[1738330376160,0.21,3351.7,3350.7,1.1255]
[1738330376360,0.21,3351.6,3350.7,1.1255]
[1738330376874,0.21,3351.6,3350.8,0.02983713]
[1738330377413,0.209,3351.5,3350.7,1.1255]
[1738330378018,0.209,3351.4,3350.8,0.02983716]
[1738330378861,3.0,3351.8,3350.9,1.0879]
[1738330378862,0.209,3351.5,3350.9,1.0879]
[1738330379160,0.209,3351.5,3351.0,0.02983415]
[1738330379497,0.209,3351.5,3350.5,1.0879]
[1738330379498,4.57647887,3351.5,3350.5,1.0879]
[1738330379708,0.66664789,3351.4,3350.5,1.11774179]
[1738330379903,0.66664789,3351.4,3350.5,1.0879]
[1738330381067,3.48157887,3351.1,3350.5,1.0879]
[1738330381272,3.48157887,3350.7,3350.2,1.1906]
[1738330381771,3.69057887,3350.7,3350.2,1.1906]
[1738330382175,6.69057887,3350.7,3348.8,0.02984643]
[1738330382334,7.47140676,3350.7,3349.5,1.1213]
[1738330382673,7.47140676,3350.7,3349.6,0.0298488]
[1738330382857,8.02890676,3350.7,3349.5,1.1213]
[1738330383862,7.47140676,3350.7,3349.5,1.1213]
[1738330384177,7.47140676,3350.7,3349.6,0.02985042]
[1738330384929,7.26240676,3350.7,3349.6,0.02985042]
[1738330385170,7.47140676,3350.7,3349.6,0.02985042]
[1738330387664,0.98882789,3350.7,3350.2,1.1975]
[1738330387849,3.68957887,3350.7,3349.9,1.1975]
[1738330388049,3.68957887,3350.7,3349.5,1.1593]
[1738330388050,5.41997887,3350.7,3349.5,1.1593]
[1738330388304,5.44980081,3350.7,3349.5,1.1593]
[1738330388447,5.44980081,3350.7,3350.6,1e-08]
[1738330388649,0.28622505,3349.7,3347.9,0.55]
[1738330388849,0.18622505,3349.2,3348.0,1.24615789]
[1738330389110,0.18622505,3349.2,3348.1,0.01496699]
[1738330389401,0.1,3348.9,3347.8,0.0149689]
[1738330389744,0.28622505,3349.2,3347.9,0.0075]
[1738330389951,0.18622505,3349.2,3348.0,0.01497116]
[1738330390783,0.209,3349.2,3348.1,0.015]
[1738330390987,0.209,3349.2,3348.3,0.0075]
[1738330391303,0.209,3349.2,3348.4,0.01496354]
[1738330391653,0.209,3349.2,3348.4,0.9512]
[1738330392210,0.1,3348.9,3348.4,0.9512]
[1738330392501,0.28622505,3348.9,3348.4,0.9512]
[1738330392992,0.1,3348.9,3348.5,0.01497844]
[1738330393161,0.28622505,3348.9,3348.5,0.01497844]
[1738330393348,0.28622505,3348.9,3348.4,0.9512]
[1738330393552,0.28622505,3348.9,3348.5,0.01497847]
[1738330393749,0.1,3348.6,3347.9,0.9512]
[1738330394005,0.1,3348.6,3348.0,0.0149835]
[1738330394242,0.1,3348.6,3347.9,0.9512]
[1738330394541,0.1,3348.4,3347.9,0.9512]
[1738330394708,0.1,3348.4,3348.0,0.01498871]
[1738330395126,0.18622505,3348.3,3347.3,0.1713818]
[1738330395324,0.18622505,3348.3,3347.3,0.1863729]
[1738330395953,0.18622505,3347.8,3347.3,0.3444414]
[1738330396243,0.18622505,3347.8,3347.4,0.01499636]
[1738330397215,0.18622505,3347.8,3347.3,0.1713818]
[1738330397411,0.18622505,3347.8,3347.4,0.01499871]
[1738330397859,0.18622505,3347.8,3347.3,0.1713818]
[1738330397860,0.1,3347.6,3347.3,0.1713818]
[1738330398369,0.1,3347.6,3347.3,0.0713818]
[1738330398370,0.1,3347.4,3347.3,0.0713818]
[1738330398940,0.18622505,3347.8,3347.3,0.0713818]
[1738330399174,0.209,3347.6,3347.3,0.0713818]
[1738330399712,0.39522505,3347.8,3347.3,0.0713818]
[1738330399913,0.1,3347.4,3347.3,0.0713818]
[1738330400160,0.1,3347.6,3347.3,0.0713818]
[1738330400867,0.1,3347.6,3346.8,0.5225818]
[1738330401036,0.28622505,3347.6,3346.8,0.5225818]
[1738330401217,0.209,3347.8,3346.8,0.5225818]
[1738330401218,0.18622505,3347.2,3346.9,0.01500565]
[1738330401417,0.1,3347.4,3346.9,0.01500565]
[1738330401828,0.1,3347.6,3346.9,0.01500726]
[1738330402036,0.18622505,3347.6,3346.9,0.01500726]
[1738330402231,0.28622505,3347.6,3346.8,0.5225818]
[1738330402735,0.28622505,3347.6,3346.9,0.01500461]
[1738330403062,0.18622505,3347.6,3346.9,0.01500461]
[1738330403246,0.18622505,3347.6,3346.8,0.5225818]